bitfinex/quotes_ETHUSD_20241204
["timestamp","ask_amount","ask_price","bid_price","bid_amount"]
[1733304441422,2.68603,3723.0,3721.9,3.45288]
[1733304442432,0.4186654,3722.3,3721.9,0.7661]
[1733304442587,0.82115258,3722.2,3721.9,0.7661]
[1733304442784,0.82115258,3722.1,3721.9,0.7661]
[1733304443014,0.82115258,3722.0,3721.9,0.7661]
[1733304443789,1.23981798,3722.0,3721.9,0.7661]
[1733304444225,0.82115258,3722.0,3721.9,0.7661]
[1733304444427,0.82115258,3722.0,3721.8,2.53810945]
[1733304444590,1.23993742,3721.9,3721.8,2.53810945]
[1733304445723,1.23993742,3721.9,3721.6,0.7507]
[1733304445928,0.82115258,3721.8,3721.6,0.7507]
[1733304446132,0.82115258,3721.7,3721.4,3.28880945]
[1733304446302,0.82115258,3721.6,3721.4,2.53810945]
[1733304446511,0.82115258,3721.5,3721.4,2.53810945]
[1733304446830,0.82115258,3721.5,3721.1,0.7507]
[1733304447044,0.82115258,3721.4,3721.1,0.7507]
[1733304447197,2.68643,3722.5,3721.3,2.53810945]
[1733304447198,0.41889169,3721.6,3721.3,2.53810945]
[1733304447510,2.68665,3722.1,3721.3,2.53810945]
[1733304447834,0.268665,3722.0,3721.3,2.53810945]
[1733304448533,0.41887415,3721.5,3721.3,2.53810945]
[1733304448692,0.41887415,3721.5,3721.4,0.7936]
[1733304448888,1.24038838,3721.5,3721.4,0.7936]
[1733304452540,0.82151423,3721.5,3721.4,0.7936]
[1733304453340,2.50515519,3722.1,3721.4,0.7936]
[1733304453525,0.6865826,3722.0,3721.4,0.7936]
[1733304454011,2.50515519,3722.1,3721.4,0.7936]
[1733304454209,2.04326776,3722.0,3721.4,0.7936]
[1733304454413,1.49777124,3721.9,3721.4,0.7936]
[1733304454719,1.49777124,3721.8,3721.4,0.7936]
[1733304454925,0.82208007,3721.7,3721.4,0.7936]
[1733304455124,0.82208007,3721.6,3721.4,0.7936]
[1733304455329,0.82208007,3721.5,3721.4,0.7936]
[1733304456155,1.24125609,3721.5,3721.4,3.81393095]
[1733304457557,0.82208007,3721.5,3721.4,3.81393095]
[1733304458857,0.65401107,3721.5,3721.4,3.81393095]
[1733304460470,0.25154272,3721.5,3721.4,3.81393095]
[1733304460684,0.65387538,3721.5,3721.4,3.81393095]
[1733304462339,0.82191934,3721.5,3721.4,3.81393095]
[1733304462543,0.82192153,3721.5,3721.4,3.81393095]
[1733304463366,0.65387538,3721.5,3721.4,3.81393095]
[1733304463864,0.82191993,3721.5,3721.4,3.81393095]
[1733304464923,0.65387538,3721.5,3721.4,3.81393095]
[1733304465127,0.82191135,3721.5,3721.4,3.81393095]
[1733304466257,0.65387538,3721.5,3721.4,3.81393095]
[1733304466567,0.8219196,3721.5,3721.4,3.81393095]
[1733304466873,0.65387538,3721.5,3721.4,3.81393095]
[1733304467084,0.82192277,3721.5,3721.4,3.81393095]
[1733304467369,0.82191747,3721.5,3721.4,3.81393095]
[1733304468193,0.82191747,3721.5,3721.3,2.53810945]
[1733304468351,1.75320315,3721.4,3721.3,2.53810945]
[1733304468558,3.56956718,3721.4,3721.3,2.53810945]
[1733304469262,4.26642503,3721.4,3721.3,2.53810945]
[1733304469468,4.26648988,3721.4,3721.3,2.53810945]
[1733304470236,3.15045601,3721.4,3721.3,2.53810945]
[1733304470632,3.15122853,3721.4,3721.3,2.53810945]
[1733304470847,5.53101405,3721.4,3721.3,2.53810945]
[1733304471059,4.82527934,3721.4,3721.3,2.53810945]
[1733304471247,3.15122853,3721.4,3721.3,2.53810945]
[1733304471444,4.84143205,3721.4,3721.3,2.53810945]
[1733304472780,4.84134789,3721.4,3721.3,2.53810945]
[1733304473666,5.39134789,3721.4,3720.9,2.53810945]
[1733304473996,0.4192307,3721.1,3720.9,2.53810945]
[1733304474294,4.27790606,3721.0,3720.9,2.53810945]
[1733304474895,3.15122853,3721.0,3720.9,2.53810945]
[1733304475260,4.27790606,3721.0,3720.9,2.53810945]
[1733304475450,3.15122853,3721.0,3720.9,2.53810945]
[1733304475650,3.15072205,3721.0,3720.9,2.53810945]
[1733304476391,3.15072119,3721.0,3720.9,2.53810945]
[1733304476587,3.1506998,3721.0,3720.9,2.53810945]
[1733304477102,4.27737733,3721.0,3720.9,2.53810945]
[1733304477394,3.1506998,3721.0,3720.9,2.53810945]
[1733304477595,4.27737733,3721.0,3720.9,2.53810945]
[1733304479092,2.88013401,3721.0,3720.9,2.53810945]
[1733304479291,4.27737733,3721.0,3720.9,2.53810945]
[1733304479499,2.88013401,3721.0,3720.9,2.53810945]
[1733304479703,4.27737733,3721.0,3720.9,2.53810945]
[1733304479861,2.88013401,3721.0,3720.9,2.53810945]
[1733304480068,3.1506998,3721.0,3720.9,2.53810945]
[1733304480270,1.75345648,3721.0,3720.9,2.53810945]
[1733304480689,1.75323322,3721.0,3720.9,2.53810945]
[1733304481077,1.75323534,3721.0,3720.9,2.53810945]
[1733304481292,1.7532212,3721.0,3720.9,2.53810945]
[1733304481570,1.7532212,3721.0,3720.9,5.22562945]
[1733304481770,0.82196093,3721.0,3720.9,5.22562945]
[1733304482063,0.82195618,3721.0,3720.9,5.22562945]
[1733304482268,1.75321453,3721.0,3720.9,5.22562945]
[1733304482484,0.82195618,3721.0,3720.9,5.22562945]
[1733304482669,0.653872,3721.0,3720.9,5.8245924]
[1733304483393,0.653872,3721.0,3720.9,9.00222945]
[1733304483612,0.25148923,3721.0,3720.9,9.00222945]
[1733304483922,2.10926808,3721.7,3721.6,0.7766]
[1733304483923,1.12667753,3721.7,3721.6,0.7766]
[1733304484065,1.12667753,3722.0,3721.8,2.68687]
[1733304484268,1.50124519,3721.9,3721.8,2.68687]
[1733304484473,1.33320187,3721.9,3721.8,2.68687]
[1733304486012,0.40208399,3721.9,3721.8,2.68687]
[1733304486170,1.33313911,3721.9,3721.6,3.4636]
[1733304486506,0.40208399,3721.8,3721.6,3.4636]
[1733304486713,1.2947208,3722.0,3721.6,3.4636]
[1733304486714,0.40208399,3721.7,3721.6,3.4636]
[1733304486877,1.39659151,3722.0,3721.6,3.4636]
[1733304487099,1.33309708,3721.9,3721.7,2.6869]
[1733304487293,0.40205897,3721.8,3721.7,2.6869]
[1733304489637,1.33315223,3721.8,3721.7,2.6869]
[1733304489932,0.40205897,3721.8,3721.7,2.6869]
[1733304490232,0.40205897,3721.8,3721.0,3.54420927]
[1733304490233,2.45981808,3721.8,3721.4,5.68715]
[1733304490434,4.02394269,3721.7,3721.2,5.68727]
[1733304490636,1.12614205,3721.5,3721.2,2.68727]
[1733304490791,1.12614205,3721.5,3721.1,2.53810945]
[1733304490792,3.85589942,3721.4,3721.1,2.53810945]
[1733304490991,2.72975737,3721.3,3721.1,2.53810945]
[1733304491197,1.33330664,3721.2,3721.1,2.53810945]
[1733304491399,0.93124767,3721.2,3721.1,2.53810945]
[1733304491938,0.93124767,3721.2,3720.7,3.35640945]
[1733304492240,0.93126178,3721.1,3720.8,2.68758]
[1733304492400,0.40208908,3721.0,3720.8,2.68758]
[1733304492731,0.40208908,3720.9,3720.8,2.68758]
[1733304494003,0.57017139,3720.9,3720.8,2.68758]
[1733304495076,1.50141166,3720.9,3720.5,2.6878]
[1733304495282,1.50141166,3720.9,3720.3,3.31700945]
[1733304495283,0.57017139,3720.8,3720.3,3.31700945]
[1733304495575,1.50147191,3720.7,3720.3,3.9487104]
[1733304495736,0.57017139,3720.7,3720.3,3.9487104]
[1733304495933,0.82152908,3720.6,3720.3,3.9487104]
[1733304496136,0.65344677,3720.5,3720.4,2.68788]
[1733304501068,0.65338203,3720.5,3720.4,3.49708]
[1733304501399,0.65338203,3720.5,3720.4,4.43257304]
[1733304501400,0.25135769,3720.5,3720.4,4.43257304]
[1733304501605,0.25135769,3720.5,3720.4,7.43257304]
[1733304501899,2.23206775,3721.6,3720.4,7.43257304]
[1733304501900,1.54498484,3721.5,3721.4,2.68716]
[1733304502129,3.04573189,3721.5,3721.4,2.68716]
[1733304502272,4.44165282,3721.5,3721.4,2.68716]
[1733304502473,2.62687817,3721.5,3721.4,2.68716]
[1733304502907,1.50073612,3721.5,3721.4,2.68716]
[1733304503510,0.5700299,3721.5,3721.4,2.68716]
[1733304503712,1.50067967,3721.5,3721.2,3.49649]
[1733304503915,0.5700299,3721.4,3721.2,2.68729]
[1733304504210,0.57000961,3721.3,3721.2,2.68729]
[1733304504388,0.57000912,3721.3,3721.2,2.25729]
[1733304505280,0.57000912,3721.3,3721.1,2.68737]
[1733304505480,0.16806204,3721.4,3721.2,2.6873]
[1733304505792,0.570041,3721.3,3721.2,2.6873]
[1733304506188,1.50080355,3721.3,3721.2,2.6873]
[1733304506906,1.50080355,3721.3,3721.0,2.68742]
[1733304507111,0.570041,3721.2,3721.0,2.68742]
[1733304507416,0.40197417,3721.1,3721.0,5.22552945]
[1733304509218,0.57004727,3721.1,3721.0,5.22552945]
[1733304509416,0.57004727,3721.1,3721.0,2.53810945]
[1733304509654,1.50113799,3721.1,3721.0,2.53810945]
[1733304509822,2.89723092,3721.1,3721.0,2.53810945]
[1733304510011,4.02337297,3721.1,3721.0,2.53810945]
[1733304510351,4.02398055,3721.1,3721.0,2.53810945]
[1733304511347,4.02410148,3721.1,3721.0,2.53810945]
[1733304511551,2.89795943,3721.1,3721.0,2.53810945]
[1733304511713,4.02419423,3721.1,3721.0,2.53810945]
[1733304511908,4.15331593,3721.1,3721.0,2.53810945]
[1733304512329,3.73448105,3721.1,3721.0,2.53810945]
[1733304512530,2.89795943,3721.1,3721.0,2.53810945]
[1733304513458,4.58807879,3721.1,3721.0,2.53810945]
[1733304513624,2.89795943,3721.1,3721.0,2.53810945]
[1733304513826,3.14923557,3721.1,3721.0,2.53810945]
[1733304514033,4.83935493,3721.1,3721.0,2.53810945]
[1733304514337,5.25818981,3721.1,3721.0,2.53810945]
[1733304514921,3.56813012,3721.1,3721.0,2.53810945]
[1733304515123,3.14928251,3721.1,3721.0,2.53810945]
[1733304515376,3.56813012,3721.1,3721.0,2.53810945]
[1733304515657,4.83940187,3721.1,3721.0,2.53810945]
[1733304515864,3.14928251,3721.1,3721.0,2.53810945]
[1733304516064,3.56813012,3721.1,3721.0,2.53810945]
[1733304516434,3.14928251,3721.1,3721.0,2.53810945]
[1733304516650,5.25824948,3721.1,3721.0,2.53810945]
[1733304517394,3.56813012,3721.1,3721.0,2.53810945]
[1733304517692,3.56813012,3721.1,3721.0,1.14461476]
[1733304517849,4.6944671,3721.1,3721.0,1.14461476]
[1733304518050,3.56813012,3721.1,3721.0,1.14461476]
[1733304519202,3.56813012,3721.1,3721.0,3.83205476]
[1733304519361,4.69444219,3721.1,3721.0,3.83205476]
[1733304519688,3.14928251,3721.1,3721.0,1.14461476]
[1733304519890,3.56868253,3721.1,3721.0,1.14461476]
[1733304520046,4.69497934,3721.1,3721.0,1.14461476]
[1733304520247,4.27557932,3721.1,3721.0,3.83205476]
[1733304520453,4.69508128,3721.1,3721.0,3.83205476]
[1733304520652,4.27605065,3721.1,3721.0,3.83205476]
[1733304521397,4.27605065,3721.1,3721.0,1.14461476]
[1733304521564,4.27605912,3721.1,3721.0,1.14461476]
[1733304521749,4.27604983,3721.1,3721.0,1.14461476]
[1733304522093,4.69661117,3721.1,3721.0,3.83205476]
[1733304522263,3.29965363,3721.1,3721.0,3.83205476]
[1733304522452,4.69661117,3721.1,3721.0,3.83205476]
[1733304523696,4.69662934,3721.1,3721.0,3.83205476]
[1733304524055,4.27710025,3721.1,3721.0,1.14461476]
[1733304524407,3.15080426,3721.1,3721.0,1.14461476]
[1733304525644,3.15083767,3721.1,3721.0,1.14461476]
[1733304525855,0.82257511,3721.1,3721.0,1.14461476]
[1733304526139,3.62536779,3721.1,3720.8,1.14461476]
[1733304526355,4.84046143,3721.0,3720.8,1.14461476]
[1733304526645,4.84046143,3720.9,3720.8,1.14461476]
[1733304527850,5.38295932,3720.9,3720.3,1.14461476]
[1733304528010,0.41958337,3720.4,3720.3,1.14461476]
[1733304528209,4.6968878,3720.4,3720.3,1.14461476]
[1733304528484,1.75390169,3720.4,3720.3,1.14461476]
[1733304528765,4.27730443,3720.4,3720.1,2.68806]
[1733304528930,3.15089157,3720.3,3720.1,2.68806]
[1733304529123,0.82252849,3720.2,3720.1,2.68806]
[1733304529363,0.82252849,3720.2,3720.0,0.54293628]
[1733304529527,0.41976539,3720.1,3720.0,3.08045922]
[1733304529872,0.8223884,3720.1,3720.0,3.08045922]
[1733304530363,0.8223884,3720.1,3720.0,5.76862922]
[1733304530659,0.8223884,3720.1,3720.0,0.54293628]
[1733304530859,0.65426239,3720.1,3720.0,3.08045922]
[1733304531462,0.65426239,3720.1,3720.0,5.76862922]
[1733304533423,0.82237642,3720.1,3720.0,5.76862922]
[1733304534373,0.82237642,3720.1,3720.0,3.08045922]
[1733304534534,1.75378319,3720.1,3720.0,3.08045922]
[1733304534728,2.17327568,3720.1,3720.0,5.76862922]
[1733304534953,1.75378319,3720.1,3720.0,5.76862922]
[1733304535429,3.57051228,3720.1,3720.0,3.08045922]
[1733304535631,1.75378319,3720.1,3720.0,3.08045922]
[1733304535852,3.57050238,3720.1,3720.0,3.08045922]
[1733304536253,2.17327568,3720.1,3720.0,3.08045922]
[1733304536457,3.57051672,3720.1,3720.0,3.08045922]
[1733304536646,1.75378319,3720.1,3720.0,5.76862922]
[1733304536842,1.7538422,3720.1,3720.0,5.76862922]
[1733304537645,3.15102742,3720.1,3720.0,3.08045922]
[1733304537836,1.7538422,3720.1,3720.0,3.08045922]
[1733304538151,3.57051991,3720.1,3720.0,3.08045922]
[1733304538345,1.7538422,3720.1,3720.0,3.08045922]
[1733304538578,1.7538422,3720.1,3720.0,5.76862922]
[1733304538870,1.75364691,3720.1,3720.0,5.76862922]
[1733304540162,0.82237642,3720.1,3720.0,3.08045922]
[1733304540365,1.75359092,3720.1,3720.0,3.08045922]
[1733304541334,1.24186891,3720.1,3720.0,3.08045922]
[1733304541535,1.75356703,3720.1,3720.0,3.08045922]
[1733304542075,2.17206465,3720.1,3720.0,3.08045922]
[1733304542575,0.82183236,3720.1,3720.0,3.08045922]
[1733304542743,1.75285061,3720.1,3720.0,3.08045922]
[1733304542944,2.81033909,3720.1,3720.0,0.54293628]
[1733304543263,6.47594096,3720.1,3719.6,2.53752294]
[1733304543481,1.12604152,3719.8,3719.2,2.53752294]
[1733304543661,0.4189986,3719.5,3719.2,2.53752294]
[1733304543862,2.17179584,3719.4,3719.2,2.53752294]
[1733304544101,2.17179584,3719.3,3719.2,2.53752294]
[1733304545161,2.1714219,3719.3,3719.2,2.53752294]
[1733304545361,1.7524233,3719.3,3719.2,2.53752294]
[1733304545587,1.7524233,3719.3,3718.8,3.29822294]
[1733304545588,1.23985393,3719.3,3718.8,3.29822294]
[1733304545794,0.82122575,3719.2,3718.8,5.98723294]
[1733304546157,0.82122575,3719.2,3718.8,5.22653294]
[1733304546587,1.23985393,3719.2,3718.8,2.53752294]
[1733304546771,2.1697584,3719.2,3718.8,2.53752294]
[1733304547268,2.16979543,3719.2,3718.8,2.53752294]
[1733304547464,1.23985393,3719.2,3718.8,2.53752294]
[1733304548351,1.0578153,3719.2,3718.8,2.53752294]
[1733304548690,1.0578153,3719.2,3718.6,0.53605485]
[1733304548691,2.02644348,3719.2,3718.6,0.53605485]
[1733304548849,0.55,3719.1,3718.4,2.55404582]
[1733304549191,1.23985393,3719.0,3718.4,2.55404582]
[1733304549395,1.37122575,3718.9,3718.4,2.55404582]
[1733304549563,1.1128153,3718.8,3718.4,2.55404582]
[1733304549770,0.65305997,3718.7,3718.4,2.55404582]
[1733304550079,0.65305997,3718.6,3718.4,2.55404582]
[1733304550283,0.65305997,3718.5,3718.4,0.01652288]
[1733304550790,3.89230997,3718.5,3718.4,0.01652288]
[1733304550994,5.81540315,3718.5,3718.4,0.01652288]
[1733304551149,5.39677497,3718.5,3718.4,0.01652288]
[1733304551353,4.51869552,3718.5,3718.4,0.01652288]
[1733304551553,2.19646475,3718.5,3718.4,0.01652288]
[1733304552366,4.88571475,3718.5,3718.4,0.01652288]
[1733304552698,4.71754897,3718.5,3718.4,0.01652288]
[1733304552988,4.4679217,3718.5,3718.4,0.01652288]
[1733304553289,2.19646475,3718.5,3718.4,0.01652288]
[1733304553492,2.02829897,3718.5,3718.4,0.01652288]
[1733304553710,1.61050592,3718.5,3718.4,0.01652288]
[1733304554364,0.65305997,3718.5,3718.4,0.01652288]
[1733304554565,0.25117691,3718.5,3718.4,2.70584288]
[1733304555139,0.25117691,3718.5,3718.4,0.01652288]
[1733304555903,0.25117691,3718.5,3718.4,2.70584288]
[1733304557330,0.41737143,3719.5,3719.1,2.68879]
[1733304557518,0.2504687,3719.4,3719.1,2.68879]
[1733304557720,0.65121044,3719.3,3719.1,2.68879]
[1733304557920,0.65121044,3719.2,3719.1,2.68879]
[1733304558635,0.2504687,3719.2,3719.1,3.47389]
[1733304558838,0.2504687,3719.2,3719.1,4.34392929]
[1733304562175,0.2504687,3719.2,3718.6,0.7506]
[1733304562464,0.65169836,3719.1,3718.8,2.68897]
[1733304562670,0.25065321,3719.1,3718.9,2.68894]
[1733304562824,0.25065321,3719.0,3718.9,2.68894]
[1733304563343,0.25067881,3719.0,3718.9,2.68894]
[1733304563543,0.25067881,3719.0,3718.7,2.68908]
[1733304563752,0.25067881,3718.9,3718.8,2.68903]
[1733304563939,0.25067881,3718.9,3718.6,3.43972]
[1733304564157,0.25067881,3718.8,3718.6,3.43972]
[1733304564463,0.25077138,3718.7,3718.6,3.43978]
[1733304564676,0.1681726,3719.5,3718.6,3.43978]
[1733304564827,0.65199732,3719.4,3718.6,2.68918]
[1733304565027,1.03401431,3719.3,3718.6,2.68918]
[1733304565230,0.65199732,3719.2,3718.6,2.68918]
[1733304565426,0.65199732,3719.1,3718.6,2.68918]
[1733304565675,0.65199732,3719.0,3718.6,2.68918]
[1733304565835,0.65199732,3718.9,3718.6,2.68918]
[1733304566035,0.25076833,3718.8,3718.6,2.68918]
[1733304566241,0.25076833,3718.7,3718.6,2.68918]
[1733304568742,0.25076833,3718.7,3718.5,2.53752294]
[1733304568948,0.25076833,3718.6,3718.5,2.53752294]
[1733304570156,0.25076833,3718.6,3718.5,5.22677294]
[1733304570984,0.6525296,3718.6,3718.4,0.01652288]
[1733304571191,0.65254226,3718.5,3718.4,0.01652288]
[1733304572567,0.82071486,3718.5,3718.4,0.01652288]
[1733304573360,0.65254226,3718.5,3718.4,5.24336582]
[1733304574488,0.65254226,3718.5,3718.4,2.55404582]
[1733304575581,0.65254226,3718.5,3718.4,5.24336582]
[1733304577383,0.65344871,3718.5,3718.4,5.24336582]
[1733304577874,0.25132643,3718.5,3718.4,5.24336582]
[1733304578596,0.65346554,3718.5,3718.4,0.01652288]
[1733304578751,0.82165817,3718.5,3718.4,0.01652288]
[1733304579095,1.77719326,3718.5,3718.4,0.01652288]
[1733304581661,0.82165817,3718.5,3718.4,0.01652288]
[1733304581962,0.65346554,3718.5,3718.4,3.51964288]
[1733304583718,0.65346554,3718.5,3718.4,0.83032288]
[1733304585782,0.82166582,3718.5,3718.4,0.83032288]
[1733304588280,0.82166582,3718.5,3718.4,3.51964288]
[1733304590414,0.65346554,3718.5,3718.4,4.52819704]
[1733304591317,1.12604152,3719.3,3718.9,2.68895]
[1733304591525,1.12604152,3719.3,3718.4,4.52819704]
[1733304591526,0.41950122,3719.1,3718.5,2.68925]
[1733304591695,1.24209419,3719.0,3718.4,0.83032288]
[1733304591878,0.82259297,3718.9,3718.4,3.51961288]
[1733304592073,0.82260201,3718.8,3718.4,4.25921404]
[1733304592345,0.41950122,3719.0,3718.7,2.68911]
[1733304592519,0.82268094,3718.9,3718.7,2.68911]
[1733304592811,0.82268094,3718.8,3718.7,2.68911]
[1733304593176,1.75423733,3718.8,3718.4,0.83032288]
[1733304593373,1.24229331,3718.7,3718.4,0.83032288]
[1733304593603,0.82268094,3718.6,3718.4,0.83032288]
[1733304593796,0.82268094,3718.5,3718.4,0.01652288]
[1733304594531,0.82268094,3718.5,3718.4,2.70580288]
[1733304594839,0.82289927,3718.5,3718.4,2.70580288]
[1733304596112,0.82289927,3718.5,3718.4,0.01652288]
[1733304596309,3.15182969,3718.5,3718.4,0.01652288]
[1733304596640,3.86120146,3718.5,3718.4,0.01652288]
[1733304596800,5.55138835,3718.5,3718.4,0.01652288]
[1733304597006,3.86154452,3718.5,3718.4,0.01652288]
[1733304597246,5.55171762,3718.5,3718.4,0.01652288]
[1733304597409,6.11437024,3718.5,3718.4,0.01652288]
[1733304597832,7.41154452,3718.5,3718.4,0.01652288]
[1733304598207,6.58864525,3718.5,3718.4,0.01652288]
[1733304598403,7.41166005,3718.5,3718.4,0.01652288]
[1733304598630,9.66448577,3718.5,3718.4,0.01652288]
[1733304599343,7.41166005,3718.5,3718.4,0.01652288]
[1733304599547,11.52729161,3718.5,3718.4,0.01652288]
[1733304599722,9.27446589,3718.5,3718.4,0.01652288]
[1733304599917,9.10220214,3718.5,3718.4,0.01652288]
[1733304600132,7.41166005,3718.5,3718.4,0.01652288]
[1733304601002,7.24326681,3718.5,3718.4,0.01652288]
[1733304601209,7.41148878,3718.5,3718.4,0.01652288]
[1733304601452,9.10210528,3718.5,3718.4,0.01652288]
[1733304601647,7.41148878,3718.5,3718.4,0.01652288]
[1733304602234,9.10208178,3718.5,3718.4,0.01652288]
[1733304604211,9.6643145,3718.5,3718.4,0.01652288]
[1733304604413,9.27521172,3718.5,3718.4,0.01652288]
[1733304604708,7.41148878,3718.5,3718.4,0.01652288]
[1733304605113,9.6643145,3718.5,3718.4,0.01652288]
[1733304605433,7.41148878,3718.5,3718.4,0.01652288]
[1733304605645,9.27521172,3718.5,3718.4,0.01652288]
[1733304605811,11.9647475,3718.5,3718.4,0.01652288]
[1733304606011,14.21757322,3718.5,3718.4,0.01652288]
[1733304606211,11.9647475,3718.5,3718.4,0.01652288]
[1733304606420,11.9647475,3718.5,3718.3,1.32549463]
[1733304606421,6.23932,3718.4,3718.3,1.32549463]
[1733304606613,14.93790592,3718.4,3718.3,1.32549463]
[1733304606955,12.12014581,3718.4,3718.3,1.32549463]
[1733304607315,12.24867246,3718.4,3718.3,1.32549463]
[1733304607669,7.84289998,3718.4,3718.3,1.32549463]
[1733304607956,6.5717197,3718.4,3718.3,1.32549463]
[1733304608250,8.26221689,3718.4,3718.3,1.32549463]
[1733304608455,7.84289998,3718.4,3718.3,1.32549463]
[1733304609529,7.12172811,3718.4,3718.3,1.32549463]
[1733304609867,3.57172689,3718.4,3718.3,4.81329463]
[1733304610149,0.82284353,3718.4,3718.3,5.29462409]
[1733304610357,2.52470683,3718.7,3718.5,2.68923]
[1733304610563,2.98365904,3718.6,3718.5,2.68923]
[1733304610737,3.15194736,3718.6,3718.5,2.68923]
[1733304613931,1.75415068,3718.6,3718.5,2.68923]
[1733304614136,0.82228623,3718.6,3718.5,3.43948446]
[1733304614374,0.65408961,3718.6,3718.5,3.43948446]
[1733304615734,0.82227023,3718.6,3718.5,2.68923]
[1733304615934,0.65408961,3718.6,3718.5,2.68923]
[1733304616564,0.82227036,3718.6,3718.5,2.68923]
[1733304616736,0.82227036,3718.6,3718.5,3.92913]
[1733304619897,0.65408961,3718.6,3718.5,3.92913]
[1733304621276,1.39794773,3718.8,3718.5,3.92913]
[1733304621277,1.39794773,3718.8,3718.7,2.68911]
[1733304621584,1.75418701,3718.8,3718.7,2.68911]
[1733304621792,3.15212439,3718.8,3718.7,2.68911]
[1733304622729,1.75418701,3718.8,3718.7,2.68911]
[1733304623008,1.75418701,3718.8,3718.5,1.2399]
[1733304623169,0.4197345,3718.7,3718.5,3.92914]
[1733304623366,0.65409165,3718.6,3718.5,1.2399]
[1733304623595,0.65409165,3718.6,3718.5,3.92915]
[1733304624804,0.65409165,3718.6,3718.5,4.71095]
[1733304626910,0.25157371,3718.6,3718.5,4.71095]
[1733304627095,0.25157371,3718.6,3718.5,5.58353746]
[1733304627605,0.65392965,3718.6,3718.5,3.92915]
[1733304627767,0.65392965,3718.6,3718.5,1.2399]
[1733304628169,0.65388173,3718.6,3718.5,1.2399]
[1733304628794,0.65388173,3718.6,3718.5,3.92915]
[1733304629668,0.25149297,3718.6,3718.5,4.71195]
[1733304630030,0.25149297,3718.6,3718.5,5.58463746]
[1733304630322,1.12700183,3719.6,3719.4,2.6886]
[1733304630478,0.82179959,3719.5,3719.4,2.6886]
[1733304630678,0.82179959,3719.5,3719.2,0.7828]
[1733304630679,1.75326383,3719.5,3719.2,3.47154]
[1733304630900,1.39724406,3719.6,3719.1,2.6888]
[1733304630901,0.65364471,3719.4,3719.1,2.6888]
[1733304631100,0.65364471,3719.3,3719.1,2.6888]
[1733304631303,0.65364471,3719.2,3718.9,2.68894]
[1733304631578,0.55,3719.0,3718.7,3.51049]
[1733304631792,0.25140183,3718.9,3718.7,3.51049]
[1733304632116,0.25140183,3718.8,3718.7,3.51049]
[1733304632293,0.25140183,3718.8,3718.4,0.8214]
[1733304632294,0.55,3718.7,3718.4,0.8214]
[1733304632487,0.25140183,3718.6,3718.3,1.32549463]
[1733304632688,0.55,3718.7,3718.5,2.68923]
[1733304632880,0.25142992,3718.6,3718.5,2.68923]
[1733304633313,0.25142992,3718.6,3718.3,1.32549463]
[1733304633618,0.25142992,3718.5,3718.3,1.32549463]
[1733304633814,0.25142992,3718.4,3718.3,1.32549463]
[1733304634636,0.80142992,3718.4,3718.3,1.32549463]
[1733304634919,1.20382201,3718.4,3718.3,1.32549463]
[1733304635818,1.20382201,3718.4,3718.3,4.01489463]
[1733304636116,0.65382201,3718.4,3718.3,4.78749463]
[1733304636625,0.25142992,3718.4,3718.3,4.78749463]
[1733304637506,0.6541559,3718.4,3718.3,4.78749463]
[1733304638037,0.25142992,3718.4,3718.3,4.78749463]
[1733304638205,0.25142992,3718.4,3718.3,5.5882821]
[1733304638408,0.55,3718.9,3718.8,2.68903]
[1733304638620,1.37273993,3718.9,3718.8,2.68903]
[1733304638855,2.30422662,3718.9,3718.8,2.68903]
[1733304639137,1.37273993,3718.9,3718.8,2.68903]
[1733304639517,0.55,3718.8,3718.6,2.68915]
[1733304639721,1.37273993,3718.7,3718.6,2.68915]
[1733304640047,1.37273993,3718.7,3718.3,2.09809463]
[1733304640208,1.20455764,3718.6,3718.3,1.32549463]
[1733304640538,0.55,3718.4,3718.3,1.32549463]
[1733304640837,1.37275197,3718.4,3718.3,1.32549463]
[1733304641305,2.30437831,3718.4,3718.3,1.32549463]
[1733304641512,6.39110538,3718.4,3718.3,1.32549463]
[1733304641695,12.69661244,3718.4,3718.3,1.32549463]
[1733304641898,0.55,3718.1,3717.4,1.38560934]
[1733304642132,2.09670746,3717.9,3717.4,1.38560934]
[1733304642333,0.55,3717.7,3717.4,1.38560934]
[1733304642540,0.82275197,3717.6,3717.4,1.38560934]
[1733304642830,1.37275197,3717.5,3717.4,1.38560934]
[1733304643530,1.37280797,3717.5,3717.4,1.38560934]
[1733304644291,1.20455764,3717.5,3717.4,1.38560934]
[1733304645250,1.20381461,3717.5,3717.4,1.38560934]
[1733304647695,1.20381461,3717.5,3717.4,4.07565934]
[1733304647892,0.65381461,3717.5,3717.4,5.30662527]
[1733304648062,0.25146716,3717.5,3717.4,5.30662527]
[1733304649379,0.25146716,3717.5,3717.4,4.89905934]
[1733304652607,0.80146716,3717.5,3717.4,4.07565934]
[1733304653410,0.40162577,3717.8,3717.4,4.07565934]
[1733304653411,0.55,3718.0,3717.4,2.17500934]
[1733304653613,0.55,3717.8,3717.6,2.68989]
[1733304653761,0.55,3717.6,3717.4,4.07562934]
[1733304653961,0.25099388,3717.5,3717.4,4.07562934]
[1733304654189,0.80099388,3717.5,3717.4,4.07562934]
[1733304655676,0.80098695,3717.5,3717.4,1.38560934]
[1733304656215,1.20256846,3717.5,3717.4,1.38560934]
[1733304656503,1.43551079,3717.5,3717.4,1.38560934]
[1733304656710,2.36597925,3717.5,3717.4,1.38560934]
[1733304656923,1.43551079,3717.5,3717.4,1.38560934]
[1733304657210,2.36597534,3717.5,3717.4,1.38560934]
[1733304658372,1.43551079,3717.5,3717.4,1.38560934]
[1733304662539,1.60375093,3717.5,3717.4,1.38560934]
[1733304662733,1.43551079,3717.5,3717.4,1.38560934]
[1733304662888,1.20256846,3717.5,3717.4,1.38560934]
[1733304663942,1.20256846,3717.5,3717.4,4.07565934]
[1733304665145,0.65256846,3717.5,3717.4,4.07565934]
[1733304665296,0.25098695,3717.5,3717.4,4.88185934]
[1733304665501,0.25098695,3717.5,3717.4,5.63907027]
[1733304665724,0.40186984,3718.1,3717.5,2.68993]
[1733304665912,0.65303434,3718.0,3717.9,3.49589]
[1733304666122,0.65303434,3718.0,3717.5,3.48906]
[1733304666327,0.65303434,3717.9,3717.5,3.48906]
[1733304666512,0.65303434,3717.8,3717.5,0.7991]
[1733304666701,1.20303434,3717.7,3717.4,1.38560934]
[1733304666905,0.55,3717.5,3717.4,4.07565934]
[1733304667114,1.20303434,3717.5,3717.4,4.07565934]
[1733304667898,0.55,3717.5,3717.4,4.07565934]
[1733304668101,1.20347196,3717.5,3717.4,4.07565934]
[1733304669034,1.3717141,3717.5,3717.4,4.07565934]
[1733304669556,1.3717141,3717.5,3717.4,1.38560934]
[1733304670643,1.79060639,3717.5,3717.4,1.38560934]
[1733304670821,1.3717141,3717.5,3717.4,1.38560934]
[1733304673350,1.3717141,3717.5,3717.4,4.07565934]
[1733304673771,0.65347196,3717.5,3717.4,5.36821527]